[Event "Titled Tuesday Blitz June 28 Late 2022"]
[White "Nikologorsky, Matfei"]
[Black "Janaszak, Dawid"]
[WhiteFideId "24102474"]
[BlackFideId "1119206"]
[WhiteElo "2231"]
[BlackElo "2199"]
[Result "0-1"]
[Round "08"]
[TimeControl "180+1"]
[Date "2022.06.29"]
[WhiteClock "0:00:05"]
[BlackClock "0:01:07"]

1. e4 {[%clk 0:03:00]}  c5 {[%clk 0:02:59]} 2. Nf3 {[%clk 0:03:00]}  Nc6 {[%clk 0:02:59]} 3. d4 {[%clk 0:03:00]}  cxd4 {[%clk 0:03:00]} 4. Nxd4 {[%clk 0:03:00]}  g6 {[%clk 0:03:00]} 5. Nc3 {[%clk 0:03:00]}  Bg7 {[%clk 0:03:00]} 6. Be3 {[%clk 0:03:00]}  Nf6 {[%clk 0:03:00]} 7. Nxc6 {[%clk 0:03:00]}  bxc6 {[%clk 0:03:00]} 8. e5 {[%clk 0:03:00]}  Ng8 {[%clk 0:02:59]} 9. Bd4 {[%clk 0:03:00]}  f6 {[%clk 0:02:47]} 10. Qe2 {[%clk 0:02:40]}  Qa5 {[%clk 0:02:45]} 11. f4 {[%clk 0:02:19]}  Rb8 {[%clk 0:02:44]} 12. O-O-O {[%clk 0:02:06]}  c5 {[%clk 0:02:37]} 13. Bf2 {[%clk 0:02:00]}  Qb4 {[%clk 0:02:35]} 14. Nb5 {[%clk 0:01:44]}  Qxf4+ {[%clk 0:02:29]} 15. Kb1 {[%clk 0:01:29]}  Qxe5 {[%clk 0:02:07]} 16. Qxe5 {[%clk 0:01:25]}  fxe5 {[%clk 0:02:08]} 17. Nc7+ {[%clk 0:01:23]}  Kf7 {[%clk 0:02:01]} 18. Bc4+ {[%clk 0:01:19]}  e6 {[%clk 0:02:01]} 19. Bxc5 {[%clk 0:01:17]}  d5 {[%clk 0:01:56]} 20. Be2 {[%clk 0:00:58]}  Nf6 {[%clk 0:01:52]} 21. Nb5 {[%clk 0:00:59]}  Ne4 {[%clk 0:01:46]} 22. Rhf1+ {[%clk 0:00:58]}  Bf6 {[%clk 0:01:46]} 23. Bxa7 {[%clk 0:00:55]}  Rb7 {[%clk 0:01:40]} 24. Bg1 {[%clk 0:00:54]}  Bd7 {[%clk 0:01:39]} 25. c4 {[%clk 0:00:51]}  Bc6 {[%clk 0:01:34]} 26. Bd3 {[%clk 0:00:45]}  Bxb5 {[%clk 0:01:27]} 27. cxb5 {[%clk 0:00:37]}  Nd6 {[%clk 0:01:27]} 28. a4 {[%clk 0:00:37]}  Ra8 {[%clk 0:01:26]} 29. Bc2 {[%clk 0:00:35]}  e4 {[%clk 0:01:23]} 30. Bd4 {[%clk 0:00:29]}  Ne8 {[%clk 0:01:23]} 31. b4 {[%clk 0:00:22]}  Kg7 {[%clk 0:01:19]} 32. Kb2 {[%clk 0:00:20]}  Bxd4+ {[%clk 0:01:14]} 33. Rxd4 {[%clk 0:00:21]}  Nd6 {[%clk 0:01:14]} 34. Kb3 {[%clk 0:00:21]}  Nf5 {[%clk 0:01:13]} 35. Rd2 {[%clk 0:00:20]}  Ne3 {[%clk 0:01:13]} 36. Re1 {[%clk 0:00:19]}  Nc4 {[%clk 0:01:13]} 37. Rf2 {[%clk 0:00:19]}  Rc8 {[%clk 0:01:09]} 38. Bd1 {[%clk 0:00:17]}  Rbc7 {[%clk 0:01:07]} 39. Be2 {[%clk 0:00:16]}  Nd2+ {[%clk 0:01:06]} 40. Ka3 {[%clk 0:00:16]}  Rc2 {[%clk 0:01:07]} 41. a5 {[%clk 0:00:04]}  R8c3+ {[%clk 0:01:07]} 42. Ka4 {[%clk 0:00:05]}  Ra2# {[%clk 0:01:07]} 0-1


[Site "https://www.chess.com"]

[Event "Titled Tuesday Blitz June 28 Late 2022"]
[White "Novikova, Galina"]
[Black "Ozates, Tuna"]
[WhiteFideId "4157095"]
[BlackFideId "6354521"]
[WhiteElo "1863"]
[BlackElo "1887"]
[Result "0-1"]
[Round "08"]
[TimeControl "180+1"]
[Date "2022.06.29"]
[WhiteClock "0:00:05"]
[BlackClock "0:00:06"]

1. e4 {[%clk 0:03:00]}  c5 {[%clk 0:02:58]} 2. Nf3 {[%clk 0:03:01]}  Nc6 {[%clk 0:02:57]} 3. d4 {[%clk 0:03:01]}  cxd4 {[%clk 0:02:52]} 4. Nxd4 {[%clk 0:03:01]}  e5 {[%clk 0:02:53]} 5. Nb3 {[%clk 0:02:57]}  Nf6 {[%clk 0:02:53]} 6. Bg5 {[%clk 0:02:57]}  a5 {[%clk 0:02:41]} 7. a4 {[%clk 0:02:38]}  Qb6 {[%clk 0:02:40]} 8. Bd3 {[%clk 0:02:26]}  Nb4 {[%clk 0:02:30]} 9. O-O {[%clk 0:02:25]}  h6 {[%clk 0:02:29]} 10. Bh4 {[%clk 0:02:23]}  d5 {[%clk 0:02:17]} 11. Bxf6 {[%clk 0:02:15]}  gxf6 {[%clk 0:02:16]} 12. Bb5+ {[%clk 0:02:16]}  Ke7 {[%clk 0:02:02]} 13. exd5 {[%clk 0:02:10]}  Rg8 {[%clk 0:01:55]} 14. Kh1 {[%clk 0:02:09]}  Bg4 {[%clk 0:01:54]} 15. f3 {[%clk 0:02:04]}  Bf5 {[%clk 0:01:52]} 16. Na3 {[%clk 0:01:50]}  Rc8 {[%clk 0:01:35]} 17. Nc4 {[%clk 0:01:50]}  Rxc4 {[%clk 0:01:30]} 18. Bxc4 {[%clk 0:01:49]}  Nxc2 {[%clk 0:01:28]} 19. Rc1 {[%clk 0:01:42]}  Ne3 {[%clk 0:01:26]} 20. Qe2 {[%clk 0:01:37]}  Rxg2 {[%clk 0:01:24]} 21. Rf2 {[%clk 0:01:32]}  Rxf2 {[%clk 0:01:17]} 22. Qxf2 {[%clk 0:01:33]}  Nxc4 {[%clk 0:01:17]} 23. Qxb6 {[%clk 0:01:18]}  Nxb6 {[%clk 0:01:18]} 24. Rc7+ {[%clk 0:01:18]}  Kd6 {[%clk 0:01:17]} 25. Rxb7 {[%clk 0:01:12]}  Nxd5 {[%clk 0:01:15]} 26. Nxa5 {[%clk 0:01:11]}  Ke6 {[%clk 0:00:59]} 27. Nc6 {[%clk 0:01:08]}  Ne7 {[%clk 0:00:20]} 28. Nd8+ {[%clk 0:00:59]}  Kd5 {[%clk 0:00:20]} 29. a5 {[%clk 0:00:58]}  Nc6 {[%clk 0:00:19]} 30. Nxf7 {[%clk 0:00:42]}  e4 {[%clk 0:00:14]} 31. a6 {[%clk 0:00:35]}  exf3 {[%clk 0:00:10]} 32. Rb5+ {[%clk 0:00:22]}  Ke4 {[%clk 0:00:08]} 33. Nxh6 {[%clk 0:00:15]}  Bh3 {[%clk 0:00:07]} 34. Rb4+ {[%clk 0:00:07]}  Bxb4 {[%clk 0:00:05]} 35. a7 {[%clk 0:00:05]}  Bg2+ {[%clk 0:00:05]} 36. Kg1 {[%clk 0:00:05]}  Bc5# {[%clk 0:00:06]} 0-1


[Site "https://www.chess.com"]

[Event "Titled Tuesday Blitz June 28 Late 2022"]
[White "Paravyan, David"]
[Black "Preotu, Razvan"]
[WhiteFideId "4194985"]
[BlackFideId "2613280"]
[WhiteElo "2569"]
[BlackElo "2407"]
[Result "1/2-1/2"]
[Round "08"]
[TimeControl "180+1"]
[Date "2022.06.28"]
[WhiteClock "0:00:04"]
[BlackClock "0:00:06"]

1. e4 {[%clk 0:03:00]}  c5 {[%clk 0:02:59]} 2. Nf3 {[%clk 0:03:00]}  d6 {[%clk 0:02:59]} 3. d4 {[%clk 0:03:01]}  cxd4 {[%clk 0:03:00]} 4. Nxd4 {[%clk 0:03:02]}  Nf6 {[%clk 0:03:00]} 5. Nc3 {[%clk 0:03:02]}  a6 {[%clk 0:03:01]} 6. Bg5 {[%clk 0:03:03]}  e6 {[%clk 0:03:00]} 7. f4 {[%clk 0:03:03]}  Be7 {[%clk 0:03:00]} 8. Qf3 {[%clk 0:03:03]}  Qc7 {[%clk 0:03:00]} 9. O-O-O {[%clk 0:03:03]}  Nbd7 {[%clk 0:03:00]} 10. Bd3 {[%clk 0:03:03]}  b5 {[%clk 0:02:59]} 11. Rhe1 {[%clk 0:03:01]}  Bb7 {[%clk 0:02:57]} 12. Qg3 {[%clk 0:03:02]}  b4 {[%clk 0:02:38]} 13. Nd5 {[%clk 0:02:59]}  exd5 {[%clk 0:02:37]} 14. exd5 {[%clk 0:02:59]}  Kd8 {[%clk 0:02:29]} 15. Nc6+ {[%clk 0:02:58]}  Bxc6 {[%clk 0:02:28]} 16. dxc6 {[%clk 0:02:59]}  Qxc6 {[%clk 0:02:17]} 17. Bxf6 {[%clk 0:02:58]}  Nxf6 {[%clk 0:02:17]} 18. Qxg7 {[%clk 0:02:58]}  Re8 {[%clk 0:02:16]} 19. Rxe7 {[%clk 0:02:53]}  Kxe7 {[%clk 0:01:55]} 20. Re1+ {[%clk 0:02:44]}  Kd8 {[%clk 0:01:46]} 21. Qxf6+ {[%clk 0:02:43]}  Kc7 {[%clk 0:01:46]} 22. Qxf7+ {[%clk 0:02:41]}  Kb6 {[%clk 0:01:45]} 23. Rd1 {[%clk 0:02:33]}  Qxg2 {[%clk 0:01:29]} 24. Qc4 {[%clk 0:02:25]}  a5 {[%clk 0:01:11]} 25. Qd4+ {[%clk 0:02:21]}  Kc7 {[%clk 0:01:09]} 26. Rg1 {[%clk 0:02:21]}  Qc6 {[%clk 0:00:49]} 27. Rg7+ {[%clk 0:02:19]}  Kb8 {[%clk 0:00:49]} 28. b3 {[%clk 0:01:58]}  Qc5 {[%clk 0:00:45]} 29. Qxc5 {[%clk 0:01:31]}  dxc5 {[%clk 0:00:46]} 30. Rg5 {[%clk 0:01:30]}  Rf8 {[%clk 0:00:28]} 31. Rxc5 {[%clk 0:01:26]}  Rxf4 {[%clk 0:00:28]} 32. Bxh7 {[%clk 0:01:20]}  Rh4 {[%clk 0:00:28]} 33. Bd3 {[%clk 0:01:18]}  Rxh2 {[%clk 0:00:28]} 34. Kb2 {[%clk 0:01:18]}  Rh4 {[%clk 0:00:24]} 35. a4 {[%clk 0:01:13]}  bxa3+ {[%clk 0:00:20]} 36. Kxa3 {[%clk 0:01:14]}  Kb7 {[%clk 0:00:19]} 37. Re5 {[%clk 0:01:13]}  Kb6 {[%clk 0:00:19]} 38. Rb5+ {[%clk 0:01:12]}  Kc6 {[%clk 0:00:19]} 39. Re5 {[%clk 0:01:11]}  Ra7 {[%clk 0:00:19]} 40. Bb5+ {[%clk 0:01:10]}  Kd6 {[%clk 0:00:19]} 41. Rg5 {[%clk 0:01:09]}  Rh1 {[%clk 0:00:10]} 42. Kb2 {[%clk 0:01:03]}  Rh2 {[%clk 0:00:09]} 43. Bd3 {[%clk 0:00:54]}  Rf2 {[%clk 0:00:04]} 44. Ka3 {[%clk 0:00:51]}  Rh2 {[%clk 0:00:03]} 45. Ka4 {[%clk 0:00:50]}  Rh4+ {[%clk 0:00:03]} 46. Bc4 {[%clk 0:00:49]}  Rh2 {[%clk 0:00:03]} 47. Bd3 {[%clk 0:00:29]}  Rh4+ {[%clk 0:00:03]} 48. Ka3 {[%clk 0:00:23]}  Rh2 {[%clk 0:00:04]} 49. Rf5 {[%clk 0:00:23]}  Rg2 {[%clk 0:00:03]} 50. Rh5 {[%clk 0:00:23]}  Rf2 {[%clk 0:00:04]} 51. Ka4 {[%clk 0:00:23]}  Rf4+ {[%clk 0:00:04]} 52. c4 {[%clk 0:00:20]}  Rf2 {[%clk 0:00:04]} 53. Be4 {[%clk 0:00:15]}  Ra2+ {[%clk 0:00:03]} 54. Kb5 {[%clk 0:00:15]}  Ra3 {[%clk 0:00:04]} 55. Rd5+ {[%clk 0:00:15]}  Ke6 {[%clk 0:00:04]} 56. Rd3 {[%clk 0:00:15]}  Ke5 {[%clk 0:00:04]} 57. Bg6 {[%clk 0:00:13]}  Rb7+ {[%clk 0:00:03]} 58. Kc6 {[%clk 0:00:07]}  Rbxb3 {[%clk 0:00:03]} 59. Rd5+ {[%clk 0:00:07]}  Kf6 {[%clk 0:00:03]} 60. Rd6+ {[%clk 0:00:08]}  Ke5 {[%clk 0:00:02]} 61. Rd5+ {[%clk 0:00:08]}  Kf4 {[%clk 0:00:02]} 62. c5 {[%clk 0:00:08]}  a4 {[%clk 0:00:02]} 63. Rd4+ {[%clk 0:00:08]}  Ke3 {[%clk 0:00:02]} 64. Re4+ {[%clk 0:00:08]}  Kf3 {[%clk 0:00:02]} 65. Rc4 {[%clk 0:00:07]}  Rc3 {[%clk 0:00:02]} 66. Rb4 {[%clk 0:00:07]}  Rc1 {[%clk 0:00:01]} 67. Kb6 {[%clk 0:00:07]}  Rac3 {[%clk 0:00:02]} 68. Be4+ {[%clk 0:00:06]}  Ke3 {[%clk 0:00:02]} 69. c6 {[%clk 0:00:04]}  a3 {[%clk 0:00:03]} 70. Bd5 {[%clk 0:00:05]}  R1c2 {[%clk 0:00:03]} 71. Ra4 {[%clk 0:00:04]}  Rb2+ {[%clk 0:00:04]} 72. Kc7 {[%clk 0:00:04]}  Rc5 {[%clk 0:00:04]} 73. Kd6 {[%clk 0:00:05]}  Rc3 {[%clk 0:00:04]} 74. c7 {[%clk 0:00:05]}  Rd2 {[%clk 0:00:05]} 75. Ra8 {[%clk 0:00:04]}  a2 {[%clk 0:00:05]} 76. Rxa2 {[%clk 0:00:02]}  Rxa2 {[%clk 0:00:05]} 77. Bxa2 {[%clk 0:00:03]}  Rxc7 {[%clk 0:00:06]} 78. Kxc7 {[%clk 0:00:04]} 1/2-1/2


[Site "https://www.chess.com"]

[Event "Titled Tuesday Blitz June 28 Late 2022"]
[White "Petersson, Kjell"]
[Black "Winkels, Marcel"]
[WhiteFideId "1705148"]
[BlackFideId "1003887"]
[WhiteElo "2009"]
[BlackElo "1900"]
[Result "1-0"]
[Round "08"]
[TimeControl "180+1"]
[Date "2022.06.29"]
[WhiteClock "0:00:51"]
[BlackClock "0:00:39"]

1. d4 {[%clk 0:03:00]}  Nf6 {[%clk 0:02:58]} 2. Bf4 {[%clk 0:03:01]}  g6 {[%clk 0:02:57]} 3. Nc3 {[%clk 0:03:00]}  d5 {[%clk 0:02:55]} 4. e3 {[%clk 0:03:00]}  a6 {[%clk 0:02:55]} 5. h4 {[%clk 0:02:59]}  h5 {[%clk 0:02:54]} 6. Nf3 {[%clk 0:02:58]}  Bg7 {[%clk 0:02:53]} 7. Ne5 {[%clk 0:02:58]}  O-O {[%clk 0:02:50]} 8. Be2 {[%clk 0:02:58]}  Nbd7 {[%clk 0:02:49]} 9. f3 {[%clk 0:02:49]}  Nxe5 {[%clk 0:02:47]} 10. Bxe5 {[%clk 0:02:43]}  c5 {[%clk 0:02:32]} 11. g4 {[%clk 0:02:19]}  Nd7 {[%clk 0:02:20]} 12. Bxg7 {[%clk 0:02:17]}  Kxg7 {[%clk 0:02:21]} 13. gxh5 {[%clk 0:02:17]}  Nf6 {[%clk 0:02:08]} 14. hxg6 {[%clk 0:02:16]}  fxg6 {[%clk 0:02:07]} 15. Qd2 {[%clk 0:02:10]}  c4 {[%clk 0:02:02]} 16. O-O-O {[%clk 0:02:05]}  b5 {[%clk 0:02:01]} 17. e4 {[%clk 0:01:54]}  b4 {[%clk 0:01:54]} 18. Nxd5 {[%clk 0:01:50]}  Nxd5 {[%clk 0:01:49]} 19. exd5 {[%clk 0:01:49]}  c3 {[%clk 0:01:35]} 20. Qg5 {[%clk 0:01:41]}  Bf5 {[%clk 0:01:29]} 21. h5 {[%clk 0:01:37]}  e6 {[%clk 0:01:21]} 22. Qg3 {[%clk 0:01:29]}  Qxd5 {[%clk 0:01:13]} 23. b3 {[%clk 0:01:17]}  Rh8 {[%clk 0:01:07]} 24. hxg6 {[%clk 0:01:15]}  a5 {[%clk 0:00:59]} 25. Rh7+ {[%clk 0:01:06]}  Rxh7 {[%clk 0:00:57]} 26. gxh7+ {[%clk 0:01:06]}  Kh8 {[%clk 0:00:57]} 27. Rg1 {[%clk 0:00:51]}  Qd7 {[%clk 0:00:41]} 28. Qg8+ {[%clk 0:00:50]}  Rxg8 {[%clk 0:00:39]} 29. hxg8=Q# {[%clk 0:00:51]} 1-0


[Site "https://www.chess.com"]

[Event "Titled Tuesday Blitz June 28 Late 2022"]
[White "Petrovic, Aleksa"]
[Black "Kim, Sergey"]
[WhiteFideId "967629"]
[BlackFideId "13700570"]
[WhiteElo "2117"]
[BlackElo "2591"]
[Result "0-1"]
[Round "08"]
[TimeControl "180+1"]
[Date "2022.06.29"]
[WhiteClock "0:00:01"]
[BlackClock "0:00:11"]

1. d4 {[%clk 0:03:00]}  Nf6 {[%clk 0:02:59]} 2. c4 {[%clk 0:03:00]}  g6 {[%clk 0:03:00]} 3. f3 {[%clk 0:02:59]}  Bg7 {[%clk 0:03:00]} 4. e4 {[%clk 0:02:59]}  d6 {[%clk 0:03:01]} 5. Nc3 {[%clk 0:02:59]}  O-O {[%clk 0:03:01]} 6. Nge2 {[%clk 0:02:59]}  Nc6 {[%clk 0:03:02]} 7. Bg5 {[%clk 0:02:52]}  a6 {[%clk 0:03:02]} 8. Qd2 {[%clk 0:02:49]}  Rb8 {[%clk 0:03:01]} 9. Rc1 {[%clk 0:02:48]}  e5 {[%clk 0:02:59]} 10. d5 {[%clk 0:02:46]}  Ne7 {[%clk 0:02:51]} 11. Nd1 {[%clk 0:02:44]}  c5 {[%clk 0:02:49]} 12. h4 {[%clk 0:02:35]}  h5 {[%clk 0:02:48]} 13. Nf2 {[%clk 0:02:32]}  b5 {[%clk 0:02:46]} 14. Nc3 {[%clk 0:02:20]}  bxc4 {[%clk 0:02:43]} 15. Nb1 {[%clk 0:02:10]}  Nh7 {[%clk 0:02:39]} 16. Na3 {[%clk 0:01:56]}  Nxg5 {[%clk 0:02:36]} 17. hxg5 {[%clk 0:01:56]}  Bd7 {[%clk 0:02:21]} 18. Nxc4 {[%clk 0:01:53]}  Bb5 {[%clk 0:02:21]} 19. Bd3 {[%clk 0:01:39]}  Nc8 {[%clk 0:02:15]} 20. g4 {[%clk 0:01:31]}  h4 {[%clk 0:02:12]} 21. Rxh4 {[%clk 0:01:14]}  Nb6 {[%clk 0:02:10]} 22. Nd1 {[%clk 0:01:04]}  Nxc4 {[%clk 0:01:56]} 23. Bxc4 {[%clk 0:01:04]}  f6 {[%clk 0:01:30]} 24. Ne3 {[%clk 0:00:30]}  fxg5 {[%clk 0:01:28]} 25. Rh3 {[%clk 0:00:30]}  Rf4 {[%clk 0:01:16]} 26. Ke2 {[%clk 0:00:28]}  Qf6 {[%clk 0:01:13]} 27. Ng2 {[%clk 0:00:23]}  Bd7 {[%clk 0:01:10]} 28. Nxf4 {[%clk 0:00:22]}  exf4 {[%clk 0:01:10]} 29. b3 {[%clk 0:00:21]}  a5 {[%clk 0:01:02]} 30. a4 {[%clk 0:00:19]}  Rb4 {[%clk 0:00:59]} 31. Kf2 {[%clk 0:00:15]}  Qe5 {[%clk 0:00:54]} 32. Kg2 {[%clk 0:00:14]}  Qf6 {[%clk 0:00:48]} 33. Qd3 {[%clk 0:00:14]}  Qb2+ {[%clk 0:00:46]} 34. Rc2 {[%clk 0:00:14]}  Qa1 {[%clk 0:00:46]} 35. Rh1 {[%clk 0:00:14]}  Qe5 {[%clk 0:00:45]} 36. Rhc1 {[%clk 0:00:13]}  Bf6 {[%clk 0:00:44]} 37. Bb5 {[%clk 0:00:07]}  Bc8 {[%clk 0:00:43]} 38. Rc4 {[%clk 0:00:07]}  Bd8 {[%clk 0:00:39]} 39. Rxb4 {[%clk 0:00:07]}  axb4 {[%clk 0:00:38]} 40. Rc2 {[%clk 0:00:07]}  Kg7 {[%clk 0:00:37]} 41. Ba6 {[%clk 0:00:07]}  Bd7 {[%clk 0:00:35]} 42. Bb7 {[%clk 0:00:07]}  Qa1 {[%clk 0:00:31]} 43. Qa6 {[%clk 0:00:06]}  Qd1 {[%clk 0:00:27]} 44. Qe2 {[%clk 0:00:06]}  Qb1 {[%clk 0:00:25]} 45. Bc6 {[%clk 0:00:06]}  Bc8 {[%clk 0:00:23]} 46. Qc4 {[%clk 0:00:05]}  Bf6 {[%clk 0:00:20]} 47. a5 {[%clk 0:00:03]}  Ba6 {[%clk 0:00:18]} 48. Qxa6 {[%clk 0:00:03]}  Qxc2+ {[%clk 0:00:19]} 49. Kf1 {[%clk 0:00:03]}  Bd4 {[%clk 0:00:18]} 50. Qe2 {[%clk 0:00:04]}  Qb1+ {[%clk 0:00:17]} 51. Qe1 {[%clk 0:00:04]}  Qa2 {[%clk 0:00:16]} 52. Qe2 {[%clk 0:00:03]}  Qxa5 {[%clk 0:00:16]} 53. Kg2 {[%clk 0:00:02]}  Qa1 {[%clk 0:00:15]} 54. Qf1 {[%clk 0:00:03]}  Qb2+ {[%clk 0:00:15]} 55. Kh3 {[%clk 0:00:03]}  Qxb3 {[%clk 0:00:14]} 56. Bb5 {[%clk 0:00:03]}  Qc2 {[%clk 0:00:13]} 57. Be2 {[%clk 0:00:03]}  Qd2 {[%clk 0:00:13]} 58. Qd1 {[%clk 0:00:02]}  Qe3 {[%clk 0:00:13]} 59. Qc2 {[%clk 0:00:02]}  b3 {[%clk 0:00:13]} 60. Qd1 {[%clk 0:00:02]}  b2 {[%clk 0:00:13]} 61. Bd3 {[%clk 0:00:02]}  Qf2 {[%clk 0:00:12]} 62. Qg1 {[%clk 0:00:01]}  Qxg1 {[%clk 0:00:11]} 0-1


[Site "https://www.chess.com"]

[Event "Titled Tuesday Blitz June 28 Late 2022"]
[White "Popilski, Gil"]
[Black "Leiva, Gianmarco"]
[WhiteFideId "2809060"]
[BlackFideId "3804399"]
[WhiteElo "2537"]
[BlackElo "2323"]
[Result "1-0"]
[Round "08"]
[TimeControl "180+1"]
[Date "2022.06.28"]
[WhiteClock "0:00:19"]
[BlackClock "0:00:01"]

1. e4 {[%clk 0:03:00]}  c5 {[%clk 0:02:59]} 2. Nf3 {[%clk 0:02:58]}  d6 {[%clk 0:02:59]} 3. d4 {[%clk 0:02:57]}  cxd4 {[%clk 0:02:59]} 4. Nxd4 {[%clk 0:02:58]}  Nf6 {[%clk 0:03:00]} 5. Nc3 {[%clk 0:02:59]}  a6 {[%clk 0:03:00]} 6. Bc4 {[%clk 0:02:59]}  e6 {[%clk 0:03:00]} 7. Bb3 {[%clk 0:02:59]}  b5 {[%clk 0:02:59]} 8. Qf3 {[%clk 0:02:55]}  Qb6 {[%clk 0:02:56]} 9. Be3 {[%clk 0:02:52]}  Qb7 {[%clk 0:02:56]} 10. O-O-O {[%clk 0:02:53]}  Be7 {[%clk 0:02:41]} 11. Rhe1 {[%clk 0:02:41]}  Nc6 {[%clk 0:02:25]} 12. Nxc6 {[%clk 0:02:23]}  Qxc6 {[%clk 0:02:26]} 13. Bd4 {[%clk 0:02:23]}  e5 {[%clk 0:01:25]} 14. Nd5 {[%clk 0:02:15]}  Be6 {[%clk 0:01:12]} 15. Bc3 {[%clk 0:01:37]}  a5 {[%clk 0:01:05]} 16. Nxe7 {[%clk 0:01:09]}  Kxe7 {[%clk 0:01:04]} 17. Bd5 {[%clk 0:01:08]}  Qc7 {[%clk 0:00:18]} 18. Bxa8 {[%clk 0:01:01]}  Rxa8 {[%clk 0:00:19]} 19. Bd2 {[%clk 0:01:01]}  Bxa2 {[%clk 0:00:10]} 20. Bg5 {[%clk 0:01:00]}  Be6 {[%clk 0:00:09]} 21. Qe3 {[%clk 0:00:52]}  Ra6 {[%clk 0:00:08]} 22. f4 {[%clk 0:00:51]}  a4 {[%clk 0:00:05]} 23. Qa3 {[%clk 0:00:48]}  Ke8 {[%clk 0:00:01]} 24. fxe5 {[%clk 0:00:44]}  dxe5 {[%clk 0:00:02]} 25. Bxf6 {[%clk 0:00:43]}  gxf6 {[%clk 0:00:02]} 26. Re3 {[%clk 0:00:41]}  Rc6 {[%clk 0:00:01]} 27. Rg3 {[%clk 0:00:39]}  Rxc2+ {[%clk 0:00:01]} 28. Kb1 {[%clk 0:00:39]}  Rc5 {[%clk 0:00:01]} 29. Rg8+ {[%clk 0:00:33]}  Ke7 {[%clk 0:00:01]} 30. g4 {[%clk 0:00:23]}  Bb3 {[%clk 0:00:01]} 31. Rdd8 {[%clk 0:00:20]}  Bc2+ {[%clk 0:00:01]} 32. Ka1 {[%clk 0:00:20]}  f5 {[%clk 0:00:01]} 33. g5 {[%clk 0:00:20]}  fxe4 {[%clk 0:00:01]} 34. Rge8# {[%clk 0:00:19]} 1-0


[Site "https://www.chess.com"]

[Event "Titled Tuesday Blitz June 28 Late 2022"]
[White "Richter, Nils"]
[Black "Rizzo, Tobias"]
[WhiteFideId "12990809"]
[BlackFideId "30942691"]
[WhiteElo "2311"]
[BlackElo "2291"]
[Result "1-0"]
[Round "08"]
[TimeControl "180+1"]
[Date "2022.06.29"]
[WhiteClock "0:00:35"]
[BlackClock "0:00:02"]

1. Nf3 {[%clk 0:03:00]}  Nf6 {[%clk 0:02:59]} 2. g3 {[%clk 0:03:01]}  g6 {[%clk 0:03:00]} 3. Bg2 {[%clk 0:03:01]}  Bg7 {[%clk 0:03:00]} 4. O-O {[%clk 0:03:01]}  O-O {[%clk 0:03:01]} 5. d4 {[%clk 0:02:53]}  d5 {[%clk 0:03:00]} 6. c3 {[%clk 0:02:53]}  b6 {[%clk 0:02:57]} 7. Ne5 {[%clk 0:02:52]}  Bb7 {[%clk 0:02:57]} 8. Nd2 {[%clk 0:02:47]}  c5 {[%clk 0:02:52]} 9. Ndf3 {[%clk 0:02:43]}  Nc6 {[%clk 0:02:48]} 10. Bf4 {[%clk 0:02:39]}  Rc8 {[%clk 0:02:46]} 11. Nxc6 {[%clk 0:02:38]}  Bxc6 {[%clk 0:02:44]} 12. Be5 {[%clk 0:02:39]}  Ne4 {[%clk 0:02:22]} 13. Bxg7 {[%clk 0:02:38]}  Kxg7 {[%clk 0:02:23]} 14. Ne5 {[%clk 0:02:38]}  Ba8 {[%clk 0:02:20]} 15. Qa4 {[%clk 0:02:34]}  Qc7 {[%clk 0:02:02]} 16. Nd3 {[%clk 0:02:21]}  cxd4 {[%clk 0:01:53]} 17. Qxd4+ {[%clk 0:02:12]}  Nf6 {[%clk 0:01:47]} 18. Rad1 {[%clk 0:02:07]}  Rfd8 {[%clk 0:01:45]} 19. h4 {[%clk 0:02:04]}  h5 {[%clk 0:01:41]} 20. Ne5 {[%clk 0:01:53]}  Qd6 {[%clk 0:01:35]} 21. Rd2 {[%clk 0:01:44]}  Kg8 {[%clk 0:01:25]} 22. Rfd1 {[%clk 0:01:42]}  Qc5 {[%clk 0:00:58]} 23. Qf4 {[%clk 0:01:38]}  b5 {[%clk 0:00:44]} 24. e3 {[%clk 0:01:35]}  a5 {[%clk 0:00:40]} 25. a3 {[%clk 0:01:34]}  Qc7 {[%clk 0:00:34]} 26. Rd4 {[%clk 0:01:24]}  Bb7 {[%clk 0:00:26]} 27. Bf1 {[%clk 0:01:12]}  Qc5 {[%clk 0:00:22]} 28. Qg5 {[%clk 0:01:07]}  Kg7 {[%clk 0:00:20]} 29. Bd3 {[%clk 0:01:05]}  Nh7 {[%clk 0:00:10]} 30. Qf4 {[%clk 0:00:57]}  Nf6 {[%clk 0:00:11]} 31. Bxg6 {[%clk 0:00:54]}  fxg6 {[%clk 0:00:12]} 32. Qg5 {[%clk 0:00:54]}  Rf8 {[%clk 0:00:02]} 33. Qxg6+ {[%clk 0:00:52]}  Kh8 {[%clk 0:00:02]} 34. Qh6+ {[%clk 0:00:47]}  Kg8 {[%clk 0:00:02]} 35. Qg6+ {[%clk 0:00:43]}  Kh8 {[%clk 0:00:02]} 36. Rf4 {[%clk 0:00:37]}  Nh7 {[%clk 0:00:02]} 37. Nf7+ {[%clk 0:00:34]}  Rxf7 {[%clk 0:00:02]} 38. Rxf7 {[%clk 0:00:35]} 1-0


[Site "https://www.chess.com"]

[Event "Titled Tuesday Blitz June 28 Late 2022"]
[White "Riehle, Marco"]
[Black "Chen, Max"]
[WhiteFideId "12904392"]
[BlackFideId "2622440"]
[WhiteElo "2462"]
[BlackElo "2498"]
[Result "1-0"]
[Round "08"]
[TimeControl "180+1"]
[Date "2022.06.28"]
[WhiteClock "0:00:39"]
[BlackClock "0:00:03"]

1. e4 {[%clk 0:03:00]}  c5 {[%clk 0:02:57]} 2. a3 {[%clk 0:03:00]}  g6 {[%clk 0:02:46]} 3. h4 {[%clk 0:02:56]}  h6 {[%clk 0:02:38]} 4. h5 {[%clk 0:02:44]}  g5 {[%clk 0:02:32]} 5. Nc3 {[%clk 0:02:44]}  Bg7 {[%clk 0:02:24]} 6. Bc4 {[%clk 0:02:43]}  e6 {[%clk 0:02:23]} 7. d3 {[%clk 0:02:40]}  Ne7 {[%clk 0:02:21]} 8. f4 {[%clk 0:02:40]}  d5 {[%clk 0:02:18]} 9. Ba2 {[%clk 0:02:38]}  Bxc3+ {[%clk 0:02:06]} 10. bxc3 {[%clk 0:02:39]}  dxe4 {[%clk 0:02:06]} 11. fxg5 {[%clk 0:02:37]}  Qd6 {[%clk 0:01:41]} 12. Ne2 {[%clk 0:02:31]}  exd3 {[%clk 0:01:40]} 13. cxd3 {[%clk 0:02:26]}  hxg5 {[%clk 0:01:39]} 14. Bxg5 {[%clk 0:02:24]}  b6 {[%clk 0:01:31]} 15. Qd2 {[%clk 0:02:15]}  Nd7 {[%clk 0:01:28]} 16. O-O-O {[%clk 0:02:12]}  Bb7 {[%clk 0:01:25]} 17. h6 {[%clk 0:02:09]}  O-O-O {[%clk 0:01:22]} 18. h7 {[%clk 0:02:08]}  Bxg2 {[%clk 0:01:01]} 19. Rh4 {[%clk 0:01:39]}  f6 {[%clk 0:00:54]} 20. Bf4 {[%clk 0:01:37]}  e5 {[%clk 0:00:55]} 21. Be3 {[%clk 0:01:35]}  Bd5 {[%clk 0:00:51]} 22. Bxd5 {[%clk 0:01:31]}  Qxd5 {[%clk 0:00:52]} 23. c4 {[%clk 0:01:28]}  Qf3 {[%clk 0:00:48]} 24. Ng1 {[%clk 0:01:17]}  Qf5 {[%clk 0:00:44]} 25. Qg2 {[%clk 0:01:11]}  Kb8 {[%clk 0:00:33]} 26. Qg7 {[%clk 0:01:11]}  Qe6 {[%clk 0:00:28]} 27. Rf1 {[%clk 0:01:03]}  Rde8 {[%clk 0:00:18]} 28. Rh5 {[%clk 0:00:55]}  Qd6 {[%clk 0:00:11]} 29. Kc2 {[%clk 0:00:52]}  Qc6 {[%clk 0:00:09]} 30. Ne2 {[%clk 0:00:51]}  Qa4+ {[%clk 0:00:07]} 31. Kb2 {[%clk 0:00:51]}  Kc7 {[%clk 0:00:06]} 32. Nc3 {[%clk 0:00:51]}  Qc6 {[%clk 0:00:06]} 33. Rh6 {[%clk 0:00:43]}  Qe6 {[%clk 0:00:04]} 34. Rhxf6 {[%clk 0:00:42]}  Nxf6 {[%clk 0:00:04]} 35. Rxf6 {[%clk 0:00:43]}  Qd7 {[%clk 0:00:03]} 36. Rf7 {[%clk 0:00:43]}  Kd8 {[%clk 0:00:03]} 37. Nd5 {[%clk 0:00:41]}  Qh3 {[%clk 0:00:02]} 38. Rxe7 {[%clk 0:00:40]}  Qh2+ {[%clk 0:00:02]} 39. Kb3 {[%clk 0:00:39]}  Qh3 {[%clk 0:00:03]} 40. Rxe8+ {[%clk 0:00:39]} 1-0


[Site "https://www.chess.com"]